[Event "***Titled Tuesday 3|2 Blitz"]
[Site "Chess.com"]
[Date "2017.02.07"]
[Round "6"]
[White "AkshatChandra"]
[Black "Maitreia"]
[Result "1-0"]
[WhiteElo "2652"]
[BlackElo "2488"]
[TimeControl "180+2"]
[EndTime "14:26:04 PST"]
[Termination "AkshatChandra won by resignation"]

1. e4 {[%clk 0:03:01.9]} 1... c5 {[%clk 0:03:00.5]} 2. Nf3 {[%clk 0:03:02.3]}
2... g6 {[%clk 0:03:02]} 3. d4 {[%clk 0:02:57.5]} 3... cxd4 {[%clk 0:03:03.9]}
4. Nxd4 {[%clk 0:02:58.7]} 4... Nc6 {[%clk 0:03:03.5]} 5. c4 {[%clk 0:02:56]}
5... Nf6 {[%clk 0:03:03]} 6. Nc3 {[%clk 0:02:56.7]} 6... Nxd4 {[%clk 0:03:04.4]}
7. Qxd4 {[%clk 0:02:58.6]} 7... d6 {[%clk 0:03:06.3]} 8. f3 {[%clk 0:02:21.9]}
8... Bg7 {[%clk 0:03:07.4]} 9. Be3 {[%clk 0:02:22.4]} 9... O-O {[%clk
0:03:08.4]} 10. Qd2 {[%clk 0:02:23.5]} 10... Bd7 {[%clk 0:03:09]} 11. Be2 {[%clk
0:02:14.7]} 11... a5 {[%clk 0:03:10.1]} 12. O-O {[%clk 0:02:12.7]} 12... Bc6
{[%clk 0:03:11.3]} 13. b3 {[%clk 0:02:10.2]} 13... Nd7 {[%clk 0:03:12.6]} 14.
Rab1 {[%clk 0:02:08.5]} 14... Nc5 {[%clk 0:03:14.2]} 15. Bd1 {[%clk 0:01:47.7]}
15... Be5 {[%clk 0:03:14.5]} 16. a3 {[%clk 0:01:43.2]} 16... e6 {[%clk
0:03:04.1]} 17. b4 {[%clk 0:01:42.3]} 17... axb4 {[%clk 0:03:01.8]} 18. axb4
{[%clk 0:01:44.2]} 18... Qf6 {[%clk 0:02:53.6]} 19. Ne2 {[%clk 0:01:31.2]} 19...
Na4 {[%clk 0:02:43.1]} 20. b5 {[%clk 0:01:19.5]} 20... Nc3 {[%clk 0:02:34.6]}
21. Nxc3 {[%clk 0:00:58]} 21... Bxc3 {[%clk 0:02:36.5]} 22. Qxd6 {[%clk
0:00:59.3]} 22... Rfd8 {[%clk 0:02:38]} 23. Qg3 {[%clk 0:00:54.7]} 23... Bd4
{[%clk 0:02:22.4]} 24. Bxd4 {[%clk 0:00:53.7]} 24... Qxd4+ {[%clk 0:02:24.3]}
25. Qf2 {[%clk 0:00:55.3]} 25... Be8 {[%clk 0:02:16.9]} 26. Bb3 {[%clk
0:00:50.2]} 26... Ra3 {[%clk 0:01:53.5]} 27. Qxd4 {[%clk 0:00:41.7]} 27... Rxd4
{[%clk 0:01:55.4]} 28. Rb2 {[%clk 0:00:43.4]} 28... e5 {[%clk 0:01:47]} 29. Kf2
{[%clk 0:00:40]} 29... b6 {[%clk 0:01:47.9]} 30. Ke2 {[%clk 0:00:35.6]} 30...
Kf8 {[%clk 0:01:45.9]} 31. Rd1 {[%clk 0:00:33.6]} 31... Rxd1 {[%clk 0:01:46.2]}
32. Bxd1 {[%clk 0:00:32.7]} 32... Ke7 {[%clk 0:01:48.1]} 33. c5 {[%clk
0:00:20.4]} 33... bxc5 {[%clk 0:01:50]} 34. b6 {[%clk 0:00:22]} 34... Ra8 {[%clk
0:01:51.4]} 35. Kd3 {[%clk 0:00:18.2]} 35... Kd6 {[%clk 0:01:51.2]} 36. Kc4
{[%clk 0:00:19.8]} 36... f5 {[%clk 0:01:28.6]} 37. b7 {[%clk 0:00:21.1]} 37...
Rb8 {[%clk 0:01:29.5]} 38. Rb6+ {[%clk 0:00:17.5]} 38... Kc7 {[%clk 0:01:30.6]}
39. Kxc5 {[%clk 0:00:18.9]} 39... fxe4 {[%clk 0:01:15.9]} 40. fxe4 {[%clk
0:00:20.8]} 40... Rxb7 {[%clk 0:01:17.2]} 41. Rxb7+ {[%clk 0:00:20.9]} 41...
Kxb7 {[%clk 0:01:19.1]} 42. Kd6 {[%clk 0:00:21.9]} 42... Kc8 {[%clk 0:01:13.3]}
43. Kxe5 {[%clk 0:00:20.3]} 43... Bc6 {[%clk 0:01:14.3]} 44. Bf3 {[%clk
0:00:18.4]} 44... Kd8 {[%clk 0:01:09.5]} 45. Kf6 {[%clk 0:00:19.9]} 45... Ke8
{[%clk 0:00:58.3]} 46. e5 {[%clk 0:00:20.6]} 46... Bd7 {[%clk 0:00:40]} 47. Bd5
{[%clk 0:00:18.1]} 47... Bf5 {[%clk 0:00:35.7]} 48. Bf7+ {[%clk 0:00:17.9]} 1-0

[Event "***Titled Tuesday 3|2 Blitz"]
[Site "Chess.com"]
[Date "2017.02.07"]
[Round "6"]
[White "RitvarsReimanis"]
[Black "A-Fier"]
[Result "1-0"]
[WhiteElo "2377"]
[BlackElo "2487"]
[TimeControl "180+2"]
[EndTime "14:26:05 PST"]
[Termination "RitvarsReimanis won by resignation"]

1. d4 {[%clk 0:02:23]} 1... Nf6 {[%clk 0:03:00.3]} 2. c4 {[%clk 0:02:23.8]} 2...
c5 {[%clk 0:03:01.8]} 3. d5 {[%clk 0:02:24.9]} 3... e6 {[%clk 0:03:03.2]} 4. Nc3
{[%clk 0:02:25.4]} 4... exd5 {[%clk 0:03:05.1]} 5. cxd5 {[%clk 0:02:27.1]} 5...
d6 {[%clk 0:03:06.6]} 6. h3 {[%clk 0:02:27.7]} 6... g6 {[%clk 0:03:05.8]} 7. Nf3
{[%clk 0:02:29]} 7... Bg7 {[%clk 0:03:07.3]} 8. e4 {[%clk 0:02:30.3]} 8... O-O
{[%clk 0:03:08.8]} 9. Bd3 {[%clk 0:02:30.8]} 9... Re8 {[%clk 0:03:08.9]} 10. O-O
{[%clk 0:02:30.2]} 10... c4 {[%clk 0:03:10.3]} 11. Bc2 {[%clk 0:02:26.4]} 11...
Nbd7 {[%clk 0:03:10.2]} 12. Re1 {[%clk 0:02:24.5]} 12... Nc5 {[%clk 0:03:09.6]}
13. Bf4 {[%clk 0:02:19.4]} 13... Nfd7 {[%clk 0:02:45.7]} 14. Bxd6 {[%clk
0:01:53.8]} 14... Qb6 {[%clk 0:02:45.8]} 15. e5 {[%clk 0:01:54.2]} 15... Qxb2
{[%clk 0:02:43.8]} 16. Qd2 {[%clk 0:01:43.7]} 16... Qb6 {[%clk 0:02:08.5]} 17.
Rab1 {[%clk 0:01:37.6]} 17... Qa6 {[%clk 0:02:06]} 18. Nb5 {[%clk 0:01:22.8]}
18... Nb3 {[%clk 0:02:06.1]} 19. Qb4 {[%clk 0:01:02.9]} 19... Qxa2 {[%clk
0:02:05.9]} 20. Bxb3 {[%clk 0:00:57]} 20... cxb3 {[%clk 0:02:06.6]} 21. Qxb3
{[%clk 0:00:56.7]} 21... Qxb3 {[%clk 0:02:04]} 22. Rxb3 {[%clk 0:00:58.6]} 22...
Nb6 {[%clk 0:02:04.1]} 23. Nc7 {[%clk 0:00:56.2]} 23... Bf5 {[%clk 0:02:05.1]}
24. Ra1 {[%clk 0:00:45.6]} 24... Be4 {[%clk 0:01:57.9]} 25. Nxa8 {[%clk
0:00:40.9]} 25... Nxa8 {[%clk 0:01:56.1]} 26. Rxb7 {[%clk 0:00:39.5]} 26... Bxd5
{[%clk 0:01:57.4]} 27. Rb8 {[%clk 0:00:37.6]} 27... Rxb8 {[%clk 0:01:57.5]} 28.
Bxb8 {[%clk 0:00:39.5]} 28... Nb6 {[%clk 0:01:57.3]} 29. Rxa7 {[%clk 0:00:39.1]}
29... Nc4 {[%clk 0:01:58.9]} 30. Re7 {[%clk 0:00:30]} 30... h6 {[%clk
0:01:54.9]} 31. Re8+ {[%clk 0:00:25.9]} 31... Kh7 {[%clk 0:01:55.6]} 32. Bd6
{[%clk 0:00:26.2]} 32... g5 {[%clk 0:01:50.8]} 33. Nd4 {[%clk 0:00:20.9]} 33...
Kg6 {[%clk 0:01:43.9]} 34. Nf3 {[%clk 0:00:21.7]} 34... Kh7 {[%clk 0:01:44.7]}
35. Re7 {[%clk 0:00:22.3]} 35... Kg6 {[%clk 0:01:43.6]} 36. Bc7 {[%clk
0:00:23.2]} 36... Bf8 {[%clk 0:01:39.8]} 37. Re8 {[%clk 0:00:24.5]} 37... Bc5
{[%clk 0:01:38.5]} 38. Bd6 {[%clk 0:00:20.6]} 38... Bb6 {[%clk 0:01:30.7]} 39.
Rb8 {[%clk 0:00:20.1]} 39... h5 {[%clk 0:01:29.6]} 40. Nd2 {[%clk 0:00:18.8]}
40... Bxf2+ {[%clk 0:01:28.9]} 41. Kxf2 {[%clk 0:00:18.6]} 41... Nxd2 {[%clk
0:01:30.8]} 42. Rb6 {[%clk 0:00:17.5]} 42... Kf5 {[%clk 0:01:27.4]} 43. g4+
{[%clk 0:00:15.5]} 43... hxg4 {[%clk 0:01:27.5]} 44. hxg4+ {[%clk 0:00:17.4]}
44... Kxg4 {[%clk 0:01:28.8]} 45. Rb4+ {[%clk 0:00:19]} 45... Kf5 {[%clk
0:01:27.2]} 46. Rd4 {[%clk 0:00:17.4]} 46... Ne4+ {[%clk 0:01:27.5]} 47. Ke3
{[%clk 0:00:18.4]} 47... Bb7 {[%clk 0:01:28.4]} 48. Rb4 {[%clk 0:00:18.7]} 48...
Bc6 {[%clk 0:01:28.6]} 49. Rb6 {[%clk 0:00:19.7]} 49... Bd5 {[%clk 0:01:29.4]}
50. Bb8 {[%clk 0:00:20.6]} 50... Be6 {[%clk 0:01:29.9]} 51. Rb1 {[%clk
0:00:20.9]} 51... Ng3 {[%clk 0:01:27]} 52. Rg1 {[%clk 0:00:21]} 52... Kg4 {[%clk
0:01:22.2]} 53. Kf2 {[%clk 0:00:21.1]} 53... Kf4 {[%clk 0:01:20.6]} 54. Rxg3
{[%clk 0:00:22.1]} 54... g4 {[%clk 0:01:22]} 55. Bd6 {[%clk 0:00:22]} 55... Ke4
{[%clk 0:01:23.3]} 56. Ra3 {[%clk 0:00:22.3]} 56... Kf4 {[%clk 0:01:24.6]} 57.
Ra4+ {[%clk 0:00:22.6]} 57... Kg5 {[%clk 0:01:24.7]} 58. Kg3 {[%clk 0:00:24.5]}
58... Bf5 {[%clk 0:01:24.9]} 59. Rb4 {[%clk 0:00:26.4]} 59... Be6 {[%clk
0:01:26]} 60. Rf4 {[%clk 0:00:27.2]} 60... Bf5 {[%clk 0:01:26.1]} 61. Be7+
{[%clk 0:00:28.6]} 61... Kg6 {[%clk 0:01:27.5]} 62. Rxg4+ {[%clk 0:00:28.5]}
62... Bxg4 {[%clk 0:01:28.8]} 63. Kxg4 {[%clk 0:00:30.4]} 63... Kg7 {[%clk
0:01:29.5]} 64. Kf5 {[%clk 0:00:31.4]} 64... Kg8 {[%clk 0:01:29.5]} 65. Kf6
{[%clk 0:00:32.9]} 65... Kh8 {[%clk 0:01:30.7]} 66. Kxf7 {[%clk 0:00:34.3]} 1-0

[Event "***Titled Tuesday 3|2 Blitz"]
[Site "Chess.com"]
[Date "2017.02.07"]
[Round "6"]
[White "SCIM"]
[Black "Vamostodorecto"]
[Result "0-1"]
[WhiteElo "2272"]
[BlackElo "2451"]
[TimeControl "180+2"]
[EndTime "14:26:07 PST"]
[Termination "Vamostodorecto won by checkmate"]

1. d4 {[%clk 0:03:02]} 1... d5 {[%clk 0:02:59.4]} 2. c4 {[%clk 0:03:02]} 2...
Nc6 {[%clk 0:02:59.4]} 3. Nc3 {[%clk 0:02:59.5]} 3... Nf6 {[%clk 0:02:54]} 4.
Nf3 {[%clk 0:02:53]} 4... Bg4 {[%clk 0:02:52.5]} 5. cxd5 {[%clk 0:02:47.3]} 5...
Nxd5 {[%clk 0:02:51.8]} 6. e4 {[%clk 0:02:45.9]} 6... Nxc3 {[%clk 0:02:30.6]} 7.
bxc3 {[%clk 0:02:45]} 7... g6 {[%clk 0:01:47.3]} 8. Rb1 {[%clk 0:02:43.7]} 8...
Bg7 {[%clk 0:01:21.9]} 9. Rxb7 {[%clk 0:02:43.3]} 9... O-O {[%clk 0:01:21.9]}
10. Be2 {[%clk 0:02:39.7]} 10... e5 {[%clk 0:01:16.6]} 11. d5 {[%clk 0:02:36.4]}
11... Ne7 {[%clk 0:01:06.6]} 12. O-O {[%clk 0:02:35.9]} 12... Nc8 {[%clk
0:01:07.2]} 13. h3 {[%clk 0:02:18.4]} 13... Bd7 {[%clk 0:00:59.5]} 14. Qc2
{[%clk 0:02:08]} 14... Nb6 {[%clk 0:00:55.4]} 15. Bg5 {[%clk 0:01:49.8]} 15...
f6 {[%clk 0:00:54.3]} 16. Be3 {[%clk 0:01:45.3]} 16... Bc8 {[%clk 0:00:53.6]}
17. Ba6 {[%clk 0:01:43.8]} 17... Bxb7 {[%clk 0:00:51.9]} 18. Bxb7 {[%clk
0:01:43.5]} 18... Rb8 {[%clk 0:00:53.5]} 19. Ba6 {[%clk 0:01:39.3]} 19... Qd6
{[%clk 0:00:48.7]} 20. c4 {[%clk 0:01:33.9]} 20... Nd7 {[%clk 0:00:48.8]} 21.
Bb5 {[%clk 0:01:29]} 21... Nc5 {[%clk 0:00:49.3]} 22. Nd2 {[%clk 0:01:23.9]}
22... f5 {[%clk 0:00:48.7]} 23. exf5 {[%clk 0:01:13.8]} 23... gxf5 {[%clk
0:00:49]} 24. Nb3 {[%clk 0:01:13.8]} 24... Nxb3 {[%clk 0:00:46.2]} 25. axb3
{[%clk 0:01:14.4]} 25... f4 {[%clk 0:00:45.5]} 26. Bxa7 {[%clk 0:01:00.2]} 26...
Ra8 {[%clk 0:00:45.6]} 27. c5 {[%clk 0:01:00]} 27... Qh6 {[%clk 0:00:38.3]} 28.
Ra1 {[%clk 0:00:55.9]} 28... e4 {[%clk 0:00:36.1]} 29. Ra6 {[%clk 0:00:50.1]}
29... Rf6 {[%clk 0:00:27.3]} 30. d6 {[%clk 0:00:44.9]} 30... e3 {[%clk
0:00:20.8]} 31. Qe4 {[%clk 0:00:24.8]} 31... exf2+ {[%clk 0:00:20.9]} 32. Kxf2
{[%clk 0:00:20.8]} 32... f3 {[%clk 0:00:21.4]} 33. Qxa8+ {[%clk 0:00:19.9]}
33... Rf8 {[%clk 0:00:21.5]} 34. Qd5+ {[%clk 0:00:19.2]} 34... Kh8 {[%clk
0:00:22]} 35. Ra2 {[%clk 0:00:12.4]} 35... Qh4+ {[%clk 0:00:21.6]} 36. Kg1
{[%clk 0:00:11.4]} 36... Qe1+ {[%clk 0:00:15.3]} 37. Kh2 {[%clk 0:00:06.6]}
37... Be5+ {[%clk 0:00:16.2]} 38. Qxe5+ {[%clk 0:00:06.8]} 38... Qxe5+ {[%clk
0:00:16.4]} 39. Kg1 {[%clk 0:00:05.7]} 39... Qe1+ {[%clk 0:00:16.8]} 40. Kh2
{[%clk 0:00:06.3]} 40... f2 {[%clk 0:00:13.1]} 41. dxc7 {[%clk 0:00:05.1]} 41...
Qe5+ {[%clk 0:00:13.9]} 42. Kh1 {[%clk 0:00:05.3]} 42... f1=Q+ {[%clk
0:00:14.2]} 43. Bxf1 {[%clk 0:00:05.2]} 43... Rxf1# {[%clk 0:00:14.2]} 0-1

[Event "***Titled Tuesday 3|2 Blitz"]
[Site "Chess.com"]
[Date "2017.02.07"]
[Round "6"]
[White "Saitama_Hero"]
[Black "oggy1984"]
[Result "1/2-1/2"]
[WhiteElo "2043"]
[BlackElo "2317"]
[TimeControl "180+2"]
[EndTime "14:26:22 PST"]
[Termination "Game drawn by repetition"]

1. e4 {[%clk 0:03:02]} 1... c5 {[%clk 0:02:59.2]} 2. b3 {[%clk 0:02:58.5]} 2...
a6 {[%clk 0:02:57]} 3. Bb2 {[%clk 0:02:58.6]} 3... d6 {[%clk 0:02:57.3]} 4. Nf3
{[%clk 0:02:57.8]} 4... e6 {[%clk 0:02:57.8]} 5. d4 {[%clk 0:02:57.8]} 5... cxd4
{[%clk 0:02:57.9]} 6. Nxd4 {[%clk 0:02:59.7]} 6... Nf6 {[%clk 0:02:57.8]} 7. Bd3
{[%clk 0:02:59.2]} 7... Be7 {[%clk 0:02:56.6]} 8. Nd2 {[%clk 0:02:59]} 8... Nc6
{[%clk 0:02:56.6]} 9. Nxc6 {[%clk 0:02:57.6]} 9... bxc6 {[%clk 0:02:57.3]} 10.
O-O {[%clk 0:02:57.9]} 10... d5 {[%clk 0:02:56.3]} 11. e5 {[%clk 0:02:55.6]}
11... Nd7 {[%clk 0:02:56.1]} 12. f4 {[%clk 0:02:48.6]} 12... Nc5 {[%clk
0:02:55.8]} 13. Nf3 {[%clk 0:02:46.8]} 13... Nxd3 {[%clk 0:02:56.1]} 14. cxd3
{[%clk 0:02:46.1]} 14... O-O {[%clk 0:02:52.4]} 15. d4 {[%clk 0:02:45.3]} 15...
c5 {[%clk 0:02:49.9]} 16. Rc1 {[%clk 0:02:43.5]} 16... cxd4 {[%clk 0:02:49.9]}
17. Nxd4 {[%clk 0:02:45.4]} 17... Bd7 {[%clk 0:02:48.8]} 18. f5 {[%clk
0:02:44.9]} 18... exf5 {[%clk 0:02:43.3]} 19. Qf3 {[%clk 0:02:38.1]} 19... Qb6
{[%clk 0:02:25.8]} 20. Kh1 {[%clk 0:02:27.6]} 20... g6 {[%clk 0:02:22.8]} 21.
Qxd5 {[%clk 0:02:25.5]} 21... Rfd8 {[%clk 0:02:11.9]} 22. Qf3 {[%clk 0:02:18]}
22... Rac8 {[%clk 0:02:05.2]} 23. Rxc8 {[%clk 0:02:07.6]} 23... Rxc8 {[%clk
0:02:05.5]} 24. Rd1 {[%clk 0:01:36]} 24... Bc5 {[%clk 0:01:55.6]} 25. h3 {[%clk
0:01:31.4]} 25... h5 {[%clk 0:01:38.9]} 26. Qf4 {[%clk 0:01:28]} 26... Kh7
{[%clk 0:01:26.7]} 27. Nf3 {[%clk 0:01:17]} 27... Be3 {[%clk 0:00:57.3]} 28. Qh4
{[%clk 0:01:01.3]} 28... Be6 {[%clk 0:00:50.4]} 29. Bd4 {[%clk 0:00:57.2]} 29...
Bxd4 {[%clk 0:00:44]} 30. Rxd4 {[%clk 0:00:58.1]} 30... Rc1+ {[%clk 0:00:27.7]}
31. Kh2 {[%clk 0:00:55.6]} 31... Rf1 {[%clk 0:00:20.6]} 32. Ng5+ {[%clk
0:00:25.6]} 32... Kh6 {[%clk 0:00:16]} 33. Nf3 {[%clk 0:00:25.5]} 33... Kh7
{[%clk 0:00:10.5]} 34. Rd8 {[%clk 0:00:22.4]} 34... Rxf3 {[%clk 0:00:03.6]} 35.
gxf3 {[%clk 0:00:24.3]} 35... Qe3 {[%clk 0:00:03.4]} 36. Qf6 {[%clk 0:00:09.7]}
36... Qf2+ {[%clk 0:00:03.1]} 37. Kh1 {[%clk 0:00:09.3]} 37... Qf1+ {[%clk
0:00:04.1]} 38. Kh2 {[%clk 0:00:10]} 38... Qf2+ {[%clk 0:00:05]} 39. Kh1 {[%clk
0:00:11.9]} 39... Qf1+ {[%clk 0:00:02.3]} 40. Kh2 {[%clk 0:00:13.8]} 40... Qf2+
{[%clk 0:00:03.8]} 41. Kh1 {[%clk 0:00:13.8]} 41... Qf1+ {[%clk 0:00:02.7]} 42.
Kh2 {[%clk 0:00:14.3]} 42... Qf2+ {[%clk 0:00:04.6]} 43. Kh1 {[%clk 0:00:15.7]}
43... Qf1+ {[%clk 0:00:05.6]} 44. Kh2 {[%clk 0:00:16.6]} 44... Qf2+ {[%clk
0:00:05.7]} 1/2-1/2

[Event "***Titled Tuesday 3|2 Blitz"]
[Site "Chess.com"]
[Date "2017.02.07"]
[Round "6"]
[White "pKiLz5Rn9b"]
[Black "Sethu0025"]
[Result "0-1"]
[WhiteElo "2570"]
[BlackElo "2557"]
[TimeControl "180+2"]
[EndTime "14:26:29 PST"]
[Termination "Sethu0025 won by resignation"]

1. e4 {[%clk 0:03:02]} 1... c5 {[%clk 0:03:00.2]} 2. c3 {[%clk 0:03:01.7]} 2...
d6 {[%clk 0:02:58.3]} 3. d4 {[%clk 0:03:02]} 3... Nf6 {[%clk 0:02:58.8]} 4. Bd3
{[%clk 0:03:01.4]} 4... g6 {[%clk 0:02:59.8]} 5. Nf3 {[%clk 0:03:01.6]} 5... Bg7
{[%clk 0:03:00.7]} 6. O-O {[%clk 0:03:01.3]} 6... O-O {[%clk 0:03:01.4]} 7. h3
{[%clk 0:03:02.6]} 7... Na6 {[%clk 0:02:59.1]} 8. a3 {[%clk 0:02:57.7]} 8... Qc7
{[%clk 0:02:45.6]} 9. Re1 {[%clk 0:02:56.8]} 9... c4 {[%clk 0:02:46.2]} 10. Bf1
{[%clk 0:02:56.1]} 10... e5 {[%clk 0:02:47.1]} 11. Nbd2 {[%clk 0:02:53.8]} 11...
b5 {[%clk 0:02:47.9]} 12. a4 {[%clk 0:02:54.4]} 12... exd4 {[%clk 0:02:18.1]}
13. cxd4 {[%clk 0:02:54.5]} 13... d5 {[%clk 0:02:14.4]} 14. e5 {[%clk
0:02:51.1]} 14... Ne4 {[%clk 0:02:12.4]} 15. axb5 {[%clk 0:02:49.9]} 15... Nb4
{[%clk 0:02:13]} 16. Nxe4 {[%clk 0:02:49.8]} 16... dxe4 {[%clk 0:02:14.9]} 17.
Rxe4 {[%clk 0:02:51]} 17... Bf5 {[%clk 0:02:15.7]} 18. Rh4 {[%clk 0:02:36.5]}
18... Rab8 {[%clk 0:01:54.2]} 19. Bh6 {[%clk 0:02:35.1]} 19... Bxh6 {[%clk
0:01:47.6]} 20. Rxh6 {[%clk 0:02:37]} 20... Rxb5 {[%clk 0:01:45.8]} 21. Qd2
{[%clk 0:02:33.1]} 21... Nd3 {[%clk 0:01:43.5]} 22. Rh4 {[%clk 0:02:31.4]} 22...
Rxb2 {[%clk 0:01:35.7]} 23. Qh6 {[%clk 0:02:31.2]} 23... f6 {[%clk 0:01:36.5]}
24. exf6 {[%clk 0:02:31.5]} 24... Rxf6 {[%clk 0:01:37.1]} 25. Ne5 {[%clk
0:02:07.7]} 25... Rxf2 {[%clk 0:01:18.8]} 26. Nxc4 {[%clk 0:01:10.2]} 26... Rf7
{[%clk 0:01:15.9]} 27. Ne3 {[%clk 0:01:02.9]} 27... Qg3 {[%clk 0:01:05.8]} 28.
Nxf5 {[%clk 0:00:58.8]} 28... R2xf5 {[%clk 0:01:05.3]} 29. Bxd3 {[%clk
0:00:48.6]} 29... Qxd3 {[%clk 0:01:03.8]} 30. Kh2 {[%clk 0:00:41.7]} 30... Qc3
{[%clk 0:00:48.9]} 31. Rb1 {[%clk 0:00:35.4]} 31... Qc7+ {[%clk 0:00:48.1]} 32.
Kg1 {[%clk 0:00:36.9]} 32... a5 {[%clk 0:00:40.1]} 33. Re1 {[%clk 0:00:33.2]}
33... a4 {[%clk 0:00:35.9]} 34. Rhe4 {[%clk 0:00:27.8]} 34... Rf8 {[%clk
0:00:27.7]} 35. Re7 {[%clk 0:00:27.7]} 35... Rf1+ {[%clk 0:00:27.9]} 36. Rxf1
{[%clk 0:00:28.5]} 36... Rxf1+ {[%clk 0:00:28.9]} 37. Kxf1 {[%clk 0:00:30.4]}
37... Qxe7 {[%clk 0:00:30.4]} 38. Qd2 {[%clk 0:00:26.6]} 38... a3 {[%clk
0:00:30.5]} 39. d5 {[%clk 0:00:25.2]} 39... Qf6+ {[%clk 0:00:31]} 40. Kg1 {[%clk
0:00:19.4]} 40... Qb2 {[%clk 0:00:26.1]} 41. Qe3 {[%clk 0:00:10.4]} 41... Qb1+
{[%clk 0:00:24.5]} 42. Kh2 {[%clk 0:00:07.2]} 42... Qb8+ {[%clk 0:00:25.1]} 43.
Kg1 {[%clk 0:00:07.4]} 43... a2 {[%clk 0:00:16.1]} 44. Qd4 {[%clk 0:00:03]}
44... Qb1+ {[%clk 0:00:15.6]} 45. Kh2 {[%clk 0:00:04.4]} 45... a1=Q {[%clk
0:00:15.9]} 46. Qf4 {[%clk 0:00:05.8]} 46... Qh1+ {[%clk 0:00:15.8]} 0-1

[Event "***Titled Tuesday 3|2 Blitz"]
[Site "Chess.com"]
[Date "2017.02.07"]
[Round "6"]
[White "Genghis_K"]
[Black "pedromartinez91"]
[Result "0-1"]
[WhiteElo "2674"]
[BlackElo "2319"]
[TimeControl "180+2"]
[EndTime "14:26:34 PST"]
[Termination "pedromartinez91 won by resignation"]

1. d4 {[%clk 0:03:02]} 1... d5 {[%clk 0:03:00.3]} 2. Bf4 {[%clk 0:03:01.9]} 2...
Nc6 {[%clk 0:02:53.4]} 3. e3 {[%clk 0:03:01.3]} 3... Nf6 {[%clk 0:02:52.7]} 4.
Nf3 {[%clk 0:03:00.5]} 4... Bg4 {[%clk 0:02:53.1]} 5. Nbd2 {[%clk 0:02:59.6]}
5... e6 {[%clk 0:02:53.5]} 6. h3 {[%clk 0:03:01.2]} 6... Bh5 {[%clk 0:02:54]} 7.
g4 {[%clk 0:03:01.3]} 7... Bg6 {[%clk 0:02:54.1]} 8. Bb5 {[%clk 0:03:02.9]} 8...
Bd6 {[%clk 0:02:53.3]} 9. Ne5 {[%clk 0:03:02.6]} 9... Bxe5 {[%clk 0:02:48.6]}
10. Bxe5 {[%clk 0:03:03.3]} 10... O-O {[%clk 0:02:47.9]} 11. Bg3 {[%clk
0:03:01.7]} 11... Nb4 {[%clk 0:02:27.7]} 12. Ba4 {[%clk 0:03:01.6]} 12... b5
{[%clk 0:02:24.6]} 13. Bb3 {[%clk 0:03:02.5]} 13... a5 {[%clk 0:02:15.6]} 14. a3
{[%clk 0:03:03.8]} 14... Na6 {[%clk 0:02:08.2]} 15. c3 {[%clk 0:03:01.3]} 15...
Bd3 {[%clk 0:01:59]} 16. f3 {[%clk 0:02:50.3]} 16... c5 {[%clk 0:01:58.1]} 17.
Bc2 {[%clk 0:02:49.2]} 17... Bxc2 {[%clk 0:01:56]} 18. Qxc2 {[%clk 0:02:51.1]}
18... b4 {[%clk 0:01:56.7]} 19. axb4 {[%clk 0:02:50.9]} 19... axb4 {[%clk
0:01:56.7]} 20. O-O {[%clk 0:02:52.1]} 20... c4 {[%clk 0:01:47.9]} 21. b3 {[%clk
0:02:40.3]} 21... Qc8 {[%clk 0:01:17.5]} 22. bxc4 {[%clk 0:02:09.5]} 22... dxc4
{[%clk 0:01:16]} 23. cxb4 {[%clk 0:02:10.6]} 23... c3 {[%clk 0:01:13.4]} 24. b5
{[%clk 0:01:53.8]} 24... cxd2 {[%clk 0:00:55.4]} 25. Qxc8 {[%clk 0:01:52.7]}
25... Rfxc8 {[%clk 0:00:56.7]} 26. bxa6 {[%clk 0:01:53.1]} 26... Nd5 {[%clk
0:00:56.9]} 27. e4 {[%clk 0:00:33.5]} 27... Ne3 {[%clk 0:00:55.4]} 28. Bf4
{[%clk 0:00:34.7]} 28... Nxf1 {[%clk 0:00:50]} 29. Rxf1 {[%clk 0:00:34.1]} 29...
Rxa6 {[%clk 0:00:44.4]} 30. Bxd2 {[%clk 0:00:35.2]} 30... Ra2 {[%clk 0:00:45.1]}
31. Rd1 {[%clk 0:00:33]} 31... f5 {[%clk 0:00:39.3]} 32. gxf5 {[%clk 0:00:32.1]}
32... exf5 {[%clk 0:00:40]} 33. d5 {[%clk 0:00:33.6]} 33... Rca8 {[%clk
0:00:28.2]} 34. Bc3 {[%clk 0:00:17.4]} 34... R2a3 {[%clk 0:00:26]} 35. Bd4
{[%clk 0:00:05.3]} 35... Rxf3 {[%clk 0:00:20.9]} 36. e5 {[%clk 0:00:06.8]} 36...
Rd8 {[%clk 0:00:20]} 37. d6 {[%clk 0:00:07.9]} 37... Kf7 {[%clk 0:00:20.5]} 38.
Rc1 {[%clk 0:00:09.4]} 38... Rd7 {[%clk 0:00:21]} 39. Rc8 {[%clk 0:00:10.6]}
39... Rxh3 {[%clk 0:00:19.4]} 40. Kg2 {[%clk 0:00:11.8]} 40... Rh4 {[%clk
0:00:20]} 41. Bc3 {[%clk 0:00:12.7]} 41... Re4 {[%clk 0:00:20.6]} 42. Kf3 {[%clk
0:00:13.8]} 42... Ke6 {[%clk 0:00:20.5]} 43. Re8+ {[%clk 0:00:14.8]} 43... Kd5
{[%clk 0:00:21.8]} 44. Rf8 {[%clk 0:00:13.9]} 44... g6 {[%clk 0:00:22]} 45. Re8
{[%clk 0:00:14.6]} 45... f4 {[%clk 0:00:18.7]} 46. Ra8 {[%clk 0:00:16.1]} 46...
Re3+ {[%clk 0:00:19.3]} 47. Kxf4 {[%clk 0:00:16.2]} 47... Rxc3 {[%clk
0:00:20.7]} 48. Re8 {[%clk 0:00:17]} 48... Rc4+ {[%clk 0:00:20.2]} 49. Kg5
{[%clk 0:00:18.6]} 49... Re4 {[%clk 0:00:18]} 50. Kf6 {[%clk 0:00:20.2]} 50...
Rxd6+ {[%clk 0:00:19]} 51. Kg7 {[%clk 0:00:19.8]} 51... Rxe5 {[%clk 0:00:19.5]}
52. Ra8 {[%clk 0:00:21.4]} 52... h5 {[%clk 0:00:19]} 53. Ra5+ {[%clk 0:00:22.7]}
53... Ke6 {[%clk 0:00:19.9]} 54. Ra4 {[%clk 0:00:22.8]} 54... g5 {[%clk
0:00:19.9]} 0-1